bitfinex-derivatives/quotes_SOLF0:USTF0_20241127
["timestamp","ask_amount","ask_price","bid_price","bid_amount"]
[1732732587719,16.07669438,239.51,239.38,3.0]
[1732732587919,2.0853,239.47,239.38,3.0]
[1732732588431,16.07669438,239.55,239.38,3.0]
[1732732588630,2.0853,239.47,239.39,1.2369]
[1732732588825,16.07669438,239.51,239.39,1.2369]
[1732732589124,16.07669438,239.51,239.4,2.0858]
[1732732589328,16.07669438,239.51,239.39,1.2369]
[1732732589930,2.0857,239.43,239.39,1.2369]
[1732732590519,2.0857,239.43,239.39,3.3229]
[1732732591222,16.07669438,239.47,239.29,1.2489]
[1732732591422,16.07669438,239.47,239.3,4.2169]
[1732732591724,2.0865,239.33,239.31,2.98]
[1732732591928,2.0865,239.33,239.3,2.98]
[1732732592426,2.0862,239.37,239.3,2.98]
[1732732592620,16.07669438,239.39,239.3,2.98]
[1732732592829,16.07669438,239.43,239.31,2.0867]
[1732732593120,2.0861,239.39,239.31,0.30174]
[1732732593433,16.07669438,239.43,239.34,2.0864]
[1732732593532,2.0861,239.38,239.34,2.0864]
[1732732593724,2.0861,239.38,239.31,0.30174]
[1732732594017,16.07669438,239.43,239.31,0.30174]
[1732732594228,16.07669438,239.39,239.31,0.30174]
[1732732594731,2.0863,239.35,239.31,2.38844]
[1732732595819,2.0862,239.37,239.33,2.0865]
[1732732596020,16.07669438,239.43,239.33,2.0865]
[1732732596224,8.49359184,239.42,239.31,0.30174]
[1732732596535,2.086,239.39,239.34,2.0864]
[1732732597324,16.07669438,239.43,239.34,2.0864]
[1732732597531,2.0861,239.38,239.31,0.30174]
[1732732597728,2.0861,239.38,239.33,2.0865]
[1732732597927,2.0861,239.38,239.31,0.30174]
[1732732598831,2.0861,239.38,239.34,2.0864]
[1732732601235,10.04837614,239.37,239.31,0.30174]
[1732732601440,10.04837614,239.34,239.31,0.30174]
[1732732601634,2.0866,239.32,239.31,0.30174]
[1732732602634,10.04837614,239.37,239.31,0.30174]
[1732732603839,10.04837614,239.4,239.31,0.30174]
[1732732604444,2.0864,239.35,239.31,2.38834]
[1732732605337,2.0864,239.34,239.31,2.38834]
[1732732606338,2.0864,239.34,239.31,2.0866]
[1732732606546,2.0864,239.34,239.3,2.8]
[1732732606547,2.0865,239.33,239.3,2.8]
[1732732606831,10.04837614,239.4,239.3,2.8]
[1732732607137,2.0864,239.34,239.3,4.8867]
[1732732607638,10.04837614,239.4,239.3,2.8]
[1732732607840,2.8,239.47,239.3,2.8]
[1732732607841,10.04837614,239.42,239.3,2.8]
[1732732608946,2.0862,239.38,239.34,2.0864]
[1732732609341,10.04837614,239.42,239.3,2.8]
[1732732609943,14.63058189,239.48,239.34,2.0864]
[1732732610143,2.0859,239.4,239.3,12.84837614]
[1732732610436,10.04837614,239.46,239.39,2.086]
[1732732610641,2.0855,239.46,239.39,2.8]
[1732732611143,2.0851,239.5,239.39,2.8]
[1732732611645,2.0851,239.5,239.46,2.0853]
[1732732611840,34.57528579,239.51,239.47,2.8]
[1732732612638,2.085,239.5,239.47,2.8]
[1732732613436,34.57528579,239.51,239.47,2.8]
[1732732613641,2.0852,239.48,239.47,2.8]
[1732732616149,2.0851,239.5,239.47,2.8]
[1732732616344,10.04837614,239.53,239.47,2.8]
[1732732617341,2.0851,239.49,239.47,2.8]
[1732732617747,10.04837614,239.53,239.47,2.8]
[1732732617951,2.0851,239.5,239.47,2.8]
[1732732618150,10.04837614,239.53,239.47,2.8]
[1732732619548,2.0852,239.48,239.47,2.8]
[1732732620446,2.0849,239.52,239.48,2.0851]
[1732732620666,10.04837614,239.53,239.47,2.8]
[1732732621746,2.085,239.51,239.47,4.8852]
[1732732622346,2.085,239.51,239.48,2.0852]
[1732732623353,2.085,239.51,239.47,2.8]
[1732732623354,2.085,239.51,239.47,4.8853]
[1732732624545,2.085,239.5,239.47,4.8853]
[1732732625250,2.085,239.5,239.47,2.8]
[1732732625780,10.04837614,239.56,239.48,2.0852]
[1732732626562,10.04837614,239.56,239.47,2.8]
[1732732626851,10.04837614,239.59,239.5,2.085]
[1732732627064,10.04837614,239.59,239.48,2.6399]
[1732732627253,10.04837614,239.59,239.51,2.0849]
[1732732627951,2.0847,239.54,239.51,2.0849]
[1732732629053,2.0847,239.54,239.48,2.6399]
[1732732629229,2.0851,239.5,239.49,2.62]
[1732732630164,12.52,239.63,239.45,3.3614]
[1732732630165,2.0852,239.48,239.45,3.3614]
[1732732630347,2.0852,239.48,239.46,2.62]
[1732732630844,2.0852,239.48,239.45,3.3614]
[1732732630845,10.04837614,239.49,239.47,2.62]
[1732732631254,10.04837614,239.49,239.45,2.62]
[1732732631860,10.04837614,239.52,239.45,2.62]
[1732732633152,2.0854,239.47,239.45,2.62]
[1732732633462,10.04837614,239.49,239.45,2.62]
[1732732634951,2.0853,239.47,239.43,2.0856]
[1732732635160,2.0853,239.47,239.44,2.62]
[1732732635637,2.0853,239.47,239.41,2.4771]
[1732732635638,10.04837614,239.49,239.41,2.4771]
[1732732635853,10.04837614,239.49,239.42,2.62]
[1732732636347,2.0856,239.43,239.42,2.62]
[1732732636564,10.04837614,239.49,239.42,2.62]
[1732732637448,2.0853,239.47,239.41,3.3076]
[1732732637649,10.04837614,239.49,239.42,2.62]
[1732732638253,2.0855,239.45,239.42,2.62]
[1732732640056,2.0856,239.44,239.42,2.62]
[1732732640250,10.04837614,239.49,239.42,2.62]
[1732732640767,2.0856,239.44,239.42,2.62]
[1732732640953,10.04837614,239.49,239.42,2.62]
[1732732641348,10.04837614,239.52,239.42,2.62]
[1732732642750,2.0851,239.49,239.43,2.0856]
[1732732643051,10.04837614,239.52,239.42,2.62]
[1732732643453,2.0855,239.45,239.42,2.62]
[1732732643651,10.04837614,239.52,239.42,2.62]
[1732732643857,10.04837614,239.55,239.42,2.62]
[1732732644126,50.11451692,239.57,239.45,10.04837614]
[1732732644348,50.11451692,239.57,239.46,1.241]
[1732732644571,50.11451692,239.57,239.48,10.04837614]
[1732732644664,10.04837614,239.67,239.51,10.04837614]
[1732732644974,10.04837614,239.67,239.49,2.62]
[1732732644975,8.4969769,239.66,239.54,10.04837614]
[1732732645152,2.0839,239.64,239.56,2.0844]
[1732732645358,10.04837614,239.7,239.56,2.0844]
[1732732645546,8.49643672,239.69,239.56,2.0844]
[1732732645751,8.49643672,239.68,239.56,2.0844]
[1732732645957,10.04837614,239.7,239.56,2.0844]
[1732732646154,10.04837614,239.67,239.56,2.0844]
[1732732646368,2.084,239.62,239.56,2.0844]
[1732732646555,10.04837614,239.67,239.54,10.04837614]
[1732732646852,10.04837614,239.67,239.55,2.44]
[1732732647759,2.0842,239.6,239.55,2.44]
[1732732649356,2.0842,239.59,239.55,2.44]
[1732732649956,10.04837614,239.67,239.55,2.44]
[1732732651256,50.0829486,239.75,239.55,2.44]
[1732732651470,10.04837614,239.68,239.56,2.0844]
[1732732651660,10.04837614,239.68,239.57,1.2751]
[1732732651965,2.0837,239.65,239.57,3.3595]
[1732732652161,10.04837614,239.68,239.57,3.3595]
[1732732652362,10.04837614,239.71,239.57,3.3595]
[1732732652561,2.0837,239.65,239.6,2.0841]
[1732732652760,10.04837614,239.71,239.61,2.44]
[1732732653067,8.49568264,239.7,239.61,2.44]
[1732732653261,2.084,239.62,239.61,2.44]
[1732732655264,2.0839,239.64,239.61,2.44]
[1732732655669,10.04837614,239.71,239.61,2.44]
[1732732655965,2.084,239.62,239.61,2.44]
[1732732656662,10.04837614,239.71,239.61,2.44]
[1732732656863,8.50139641,239.7,239.61,2.44]
[1732732657064,10.04837614,239.71,239.61,2.44]
[1732732657673,8.49983876,239.7,239.61,2.44]
[1732732657863,2.0838,239.64,239.61,2.44]
[1732732659271,2.0838,239.65,239.61,4.524]
[1732732659465,10.04837614,239.74,239.61,2.44]
[1732732659683,8.49680617,239.73,239.63,10.04837614]
[1732732659889,2.0833,239.71,239.64,1.252]
[1732732660067,10.04837614,239.79,239.64,1.252]
[1732732660269,2.083,239.74,239.68,2.0834]
[1732732660464,2.083,239.74,239.64,1.252]
[1732732660465,10.04837614,239.79,239.69,2.44]
[1732732660665,8.49461164,239.78,239.69,2.44]
[1732732660864,2.0831,239.73,239.69,4.5234]
[1732732661068,2.0831,239.73,239.69,2.44]
[1732732661569,10.04837614,239.79,239.69,2.44]
[1732732661769,10.04837614,239.82,239.69,2.44]
[1732732661964,8.49220719,239.81,239.69,2.44]
[1732732662169,10.04837614,239.82,239.7,2.0833]
[1732732662170,8.49220719,239.8,239.7,2.0833]
[1732732662468,10.04837614,239.82,239.7,2.0833]
[1732732662664,8.4909824,239.81,239.7,2.0833]
[1732732662876,8.4909824,239.8,239.7,2.0833]
[1732732663064,10.04837614,239.82,239.7,2.0833]
[1732732663271,2.083,239.74,239.7,2.0833]
[1732732663678,10.04837614,239.82,239.69,2.44]
[1732732664268,10.04837614,239.82,239.72,2.0831]
[1732732664728,2.0828,239.75,239.72,2.0831]
[1732732665474,10.04837614,239.82,239.69,2.44]
[1732732665673,2.083,239.74,239.69,2.44]
[1732732666173,10.04837614,239.79,239.68,1.3146]
[1732732666374,2.083,239.73,239.69,2.44]
[1732732667171,2.0832,239.71,239.67,1.2417]
[1732732667482,10.04837614,239.76,239.68,2.44]
[1732732667775,2.083,239.74,239.68,2.44]
[1732732667975,10.04837614,239.76,239.68,2.44]
[1732732668277,10.04837614,239.79,239.68,4.5235]
[1732732668673,10.04837614,239.79,239.68,2.0835]
[1732732668870,10.04837614,239.79,239.69,2.44]
[1732732669379,10.04837614,239.79,239.69,4.5233]
[1732732669981,2.0831,239.72,239.69,4.5233]
[1732732670489,2.0831,239.72,239.69,2.44]
[1732732672377,2.0833,239.7,239.69,2.44]
[1732732672885,2.083,239.74,239.69,2.44]
[1732732673076,10.04837614,239.81,239.69,2.44]
[1732732673280,10.04837614,239.78,239.69,2.44]
[1732732673578,2.0832,239.71,239.69,2.44]
[1732732673978,10.04837614,239.78,239.69,2.44]
[1732732674374,2.44,239.85,239.69,2.44]
[1732732674375,6.41021532,239.75,239.69,2.44]
[1732732676487,2.0833,239.71,239.69,2.44]
[1732732677692,2.44,239.85,239.69,2.44]
[1732732678003,2.0831,239.73,239.69,2.44]
[1732732678331,2.0831,239.73,239.69,4.5234]
[1732732678397,2.0831,239.73,239.69,2.44]
[1732732678907,6.41021532,239.76,239.69,2.44]
[1732732679096,6.41021532,239.74,239.69,2.44]
[1732732679794,2.0831,239.72,239.69,2.44]
[1732732680797,6.41021532,239.76,239.69,2.44]
[1732732680798,2.0832,239.71,239.69,2.44]
[1732732681895,2.083,239.74,239.69,4.5233]
[1732732682096,6.41021532,239.76,239.69,4.5233]
[1732732683099,2.0829,239.74,239.69,4.5233]
[1732732683299,6.41021532,239.76,239.69,4.5233]
[1732732683797,6.41021532,239.8,239.72,6.41021532]
[1732732684497,8.49790406,239.79,239.72,6.41021532]
[1732732684806,6.41021532,239.78,239.7,6.41021532]
[1732732685598,6.41021532,239.78,239.71,2.0832]
[1732732685996,6.41021532,239.78,239.7,6.41021532]
[1732732686501,2.0828,239.77,239.73,2.083]
[1732732686911,2.0826,239.79,239.75,2.0828]
[1732732687115,6.41021532,239.8,239.76,2.28]
[1732732688505,6.41021532,239.77,239.69,2.28]
[1732732688698,34.51976554,239.81,239.69,2.28]
[1732732689099,6.41021532,239.78,239.7,6.41021532]
[1732732689604,2.0828,239.76,239.7,6.41021532]
[1732732689801,6.41021532,239.78,239.7,6.41021532]
[1732732690016,6.41021532,239.76,239.69,2.28]
[1732732690240,6.41021532,239.78,239.7,6.41021532]
[1732732690599,2.0827,239.78,239.73,2.083]
[1732732691008,34.51976554,239.81,239.76,6.41021532]
[1732732691199,34.51976554,239.81,239.77,2.28]
[1732732692200,2.0824,239.8,239.77,2.28]
[1732732693209,34.51976554,239.81,239.77,2.28]
[1732732693210,2.13177089,239.93,239.77,2.28]
[1732732693398,6.41021532,239.84,239.77,2.28]
[1732732694202,2.0822,239.83,239.77,2.28]
[1732732694604,6.41021532,239.85,239.77,2.28]
[1732732694904,6.41021532,239.83,239.77,2.28]
[1732732696308,6.41021532,239.81,239.67,1.2417]
[1732732696521,2.0828,239.76,239.71,6.41021532]
[1732732696747,6.41021532,239.75,239.71,2.46]
[1732732697052,2.46,239.9,239.72,6.41021532]
[1732732697067,6.41021532,239.79,239.72,6.41021532]
[1732732697218,6.41021532,239.81,239.72,6.41021532]
[1732732697411,6.41021532,239.81,239.74,6.41021532]
[1732732697607,4.51414685,239.93,239.74,8.49311532]
[1732732697809,6.41021532,239.83,239.74,6.41021532]
[1732732698306,2.46,239.93,239.76,6.41021532]
[1732732698517,4.1618,239.98,239.67,1.2417]
[1732732698518,6.41021532,239.85,239.78,6.41021532]
[1732732698708,6.41021532,239.85,239.79,2.46]
[1732732699010,2.0821,239.84,239.79,2.46]
[1732732699201,6.41021532,239.85,239.79,2.46]
[1732732700735,2.0822,239.83,239.79,2.46]
[1732732702309,2.0822,239.83,239.78,8.49281532]
[1732732702511,2.0828,239.76,239.74,2.46]
[1732732702712,6.41021532,239.8,239.75,2.46]
[1732732703009,6.41021532,239.82,239.75,2.46]
[1732732703210,2.0824,239.8,239.75,4.5428]
[1732732703435,6.41021532,239.82,239.75,2.46]
[1732732704013,2.0825,239.79,239.75,4.5428]
[1732732704417,6.41021532,239.82,239.75,4.5428]
[1732732704782,6.41021532,239.82,239.76,2.0828]
[1732732705119,6.41021532,239.8,239.75,2.46]
[1732732705410,6.41021532,239.8,239.76,2.46]
[1732732705611,17.70375903,239.81,239.77,2.46]
[1732732705807,2.0826,239.79,239.77,2.46]
[1732732706007,17.70375903,239.81,239.77,2.46]
[1732732706435,17.07388706,239.8,239.78,2.46]
[1732732706620,6.41021532,239.81,239.79,2.46]
[1732732706808,17.0750798,239.8,239.79,0.1980722]
[1732732707215,19.1574798,239.8,239.79,0.1980722]
[1732732707413,17.0750798,239.8,239.61,48.68259599]
[1732732707609,6.41021532,239.75,239.67,6.41021532]
[1732732707816,19.1580798,239.74,239.69,2.0834]
[1732732708019,17.0750798,239.73,239.69,2.0834]
[1732732708221,17.0750798,239.72,239.69,2.0834]
[1732732708416,17.0750798,239.71,239.69,2.0834]
[1732732708617,17.0750798,239.7,239.69,8.49361532]
[1732732709018,17.0750798,239.7,239.68,2.46]
[1732732709215,17.0750798,239.69,239.68,2.46]
[1732732709724,17.0750798,239.69,239.68,4.5435]
[1732732710921,17.0750798,239.69,239.68,2.46]
[1732732711351,17.0750798,239.69,239.68,4.5435]
[1732732712323,8.51892888,239.69,239.68,4.5435]
[1732732712525,2.0831,239.73,239.69,2.0833]
[1732732712726,6.41021532,239.76,239.68,2.46]
[1732732713031,6.41021532,239.77,239.68,8.87021532]
[1732732713224,6.41021532,239.75,239.68,8.87021532]
[1732732713415,6.41021532,239.75,239.59,2.55725206]
[1732732713416,6.41021532,239.77,239.7,2.0833]
[1732732713615,6.41021532,239.77,239.69,6.41021532]
[1732732713814,2.0829,239.74,239.7,4.5432]
[1732732714627,6.41021532,239.77,239.7,2.46]
[1732732714829,6.41021532,239.79,239.7,2.46]
[1732732715226,6.41021532,239.79,239.71,2.0832]
[1732732715227,2.0829,239.75,239.71,2.0832]
[1732732716125,2.0832,239.71,239.7,2.46]
[1732732716430,2.46,239.86,239.7,8.87021532]
[1732732716623,6.41021532,239.76,239.7,2.46]
[1732732718431,2.0829,239.75,239.7,2.46]
[1732732718626,2.46,239.86,239.7,2.46]
[1732732718832,6.41021532,239.77,239.7,2.46]
[1732732719631,2.083,239.74,239.7,2.46]
[1732732719931,6.41021532,239.75,239.7,2.46]
[1732732720735,6.41021532,239.73,239.7,2.46]
[1732732721028,14.98,239.86,239.7,2.46]
[1732732721029,2.083,239.74,239.7,2.46]
[1732732721425,2.083,239.74,239.7,4.5433]
[1732732722021,2.083,239.74,239.58,3.7728]
[1732732722022,6.41021532,239.75,239.65,2.46]
[1732732722220,2.0831,239.73,239.66,8.87021532]
[1732732722421,6.41021532,239.75,239.67,2.46]
[1732732722630,6.41021532,239.75,239.68,2.46]
[1732732722926,6.41021532,239.73,239.68,2.46]
[1732732723935,2.0832,239.71,239.68,2.46]
[1732732724238,6.41021532,239.77,239.68,8.87021532]
[1732732724929,6.41021532,239.77,239.7,2.0832]
[1732732724930,2.0829,239.74,239.7,2.0832]
[1732732726121,6.41021532,239.73,239.68,4.5435]
[1732732726631,4.1641,239.85,239.68,2.52]
[1732732726632,2.0834,239.69,239.68,2.52]
[1732732726828,2.0834,239.69,239.65,2.0836]
[1732732727032,2.0834,239.69,239.67,2.52]
[1732732727544,6.41021532,239.69,239.62,2.52]
[1732732727961,6.41021532,239.65,239.62,2.52]
[1732732728066,2.0839,239.63,239.62,2.52]
[1732732728230,2.0839,239.63,239.58,2.4975]
[1732732728231,6.41021532,239.65,239.58,2.4975]
[1732732728422,6.41021532,239.63,239.58,2.52]
[1732732728630,6.41021532,239.67,239.59,6.41021532]
[1732732729034,20.3909,239.79,239.58,2.52]
[1732732729035,2.52,239.77,239.63,6.41021532]
[1732732729331,6.41021532,239.72,239.64,2.52]
[1732732730229,2.0836,239.67,239.64,2.52]
[1732732731333,6.41021532,239.7,239.64,2.52]
[1732732731635,2.0837,239.65,239.64,2.52]
[1732732732131,6.41021532,239.69,239.64,2.52]
[1732732732533,2.52,239.77,239.64,2.52]
[1732732732726,6.41021532,239.69,239.64,2.52]
[1732732733132,2.0836,239.67,239.64,2.52]
[1732732733329,6.41021532,239.69,239.64,2.52]
[1732732733831,2.0837,239.66,239.64,2.52]
[1732732735128,6.41021532,239.69,239.64,2.52]
[1732732735129,2.0837,239.65,239.64,2.52]
[1732732735529,2.0838,239.64,239.61,2.52]
[1732732736233,2.0837,239.66,239.61,2.52]
[1732732736631,2.0837,239.65,239.61,2.52]
[1732732737136,2.0837,239.65,239.61,4.6041]
[1732732740636,2.0843,239.59,239.55,2.0846]
[1732732740866,6.41021532,239.63,239.56,2.52]
[1732732741336,2.0842,239.6,239.56,4.6044]
[1732732742734,2.0842,239.6,239.57,2.0844]
[1732732742936,2.0841,239.62,239.57,2.0844]
[1732732743182,6.41021532,239.64,239.57,2.52]
[1732732743482,2.084,239.62,239.57,2.52]
[1732732743738,6.41021532,239.64,239.57,2.52]
[1732732744035,6.41021532,239.64,239.56,4.6044]
[1732732744648,2.0841,239.61,239.56,11.01461532]
[1732732744936,6.41021532,239.64,239.56,11.01461532]
[1732732745437,6.41021532,239.64,239.56,8.93021532]
[1732732745639,6.41021532,239.66,239.58,6.41021532]
[1732732745826,4.1656,239.76,239.58,6.41021532]
[1732732746041,2.0839,239.63,239.6,2.0841]
[1732732746342,6.41021532,239.66,239.56,2.52]
[1732732746662,6.41021532,239.66,239.56,8.93021532]
[1732732746752,6.41021532,239.66,239.57,2.0844]
[1732732746936,6.41021532,239.66,239.58,6.41021532]
[1732732747337,2.52,239.75,239.58,8.49451532]
[1732732747533,6.41021532,239.69,239.52,2.4841]
[1732732747735,6.41021532,239.67,239.58,6.41021532]
[1732732747934,6.41021532,239.67,239.59,2.52]
[1732732748233,6.41021532,239.65,239.55,6.41021532]
[1732732748447,6.41021532,239.63,239.56,2.52]
[1732732748837,2.0841,239.61,239.56,2.52]
[1732732749733,2.0842,239.6,239.56,2.52]
[1732732750734,2.0841,239.61,239.57,6.41021532]
[1732732751743,6.41021532,239.65,239.57,6.41021532]
[1732732751942,2.0842,239.6,239.57,6.41021532]
[1732732752145,2.0842,239.6,239.56,2.52]
[1732732753853,6.6856,239.76,239.58,6.41021532]
[1732732754347,6.41021532,239.67,239.58,6.41021532]
[1732732754552,6.41021532,239.67,239.56,2.52]
[1732732754553,6.41021532,239.65,239.56,2.52]
[1732732754856,6.41021532,239.63,239.56,2.52]
[1732732755246,2.0844,239.58,239.56,2.52]
[1732732756239,2.0843,239.59,239.56,8.93021532]
[1732732756487,6.6856,239.76,239.56,8.93021532]
[1732732756662,6.41021532,239.65,239.56,8.93021532]
[1732732757350,6.41021532,239.65,239.56,11.01471532]
[1732732757544,2.0842,239.6,239.56,8.93021532]
[1732732758148,2.0844,239.57,239.56,2.52]
[1732732758646,6.41021532,239.64,239.56,2.52]
[1732732758847,2.0844,239.57,239.56,2.52]
[1732732759145,19.2056,239.76,239.52,2.4841]
[1732732759343,5.78791897,239.79,239.52,2.4841]
[1732732759344,6.41021532,239.56,239.52,2.4841]
[1732732759549,2.46,239.68,239.53,2.46]
[1732732759843,6.41021532,239.59,239.53,2.46]
[1732732760048,5.8309119,239.67,239.53,2.46]
[1732732760351,6.41021532,239.59,239.53,2.46]
[1732732760953,3.7843,239.67,239.53,8.87021532]
[1732732761151,6.41021532,239.62,239.53,8.87021532]
[1732732761547,2.0845,239.56,239.53,2.46]
[1732732761750,3.7843,239.67,239.55,6.41021532]
[1732732761945,6.41021532,239.64,239.57,6.41021532]
[1732732762143,2.46,239.72,239.57,6.41021532]
[1732732762347,2.46,239.72,239.55,6.41021532]
[1732732762348,6.41021532,239.65,239.55,6.41021532]
[1732732762649,6.41021532,239.63,239.55,6.41021532]
[1732732763150,2.0842,239.61,239.57,6.41021532]
[1732732764142,2.0841,239.62,239.57,8.49461532]
[1732732764346,6.41021532,239.65,239.57,6.41021532]
[1732732764640,2.46,239.74,239.57,6.41021532]
[1732732764843,2.46,239.74,239.53,2.46]
[1732732764844,6.41021532,239.67,239.59,6.41021532]
[1732732765052,6.41021532,239.65,239.6,2.46]
[1732732765553,6.41021532,239.69,239.61,6.41021532]
[1732732765951,6.41021532,239.67,239.6,2.46]
[1732732766450,6.41021532,239.65,239.6,2.46]
[1732732766652,2.46,239.76,239.6,2.46]
[1732732766945,6.41021532,239.65,239.57,6.41021532]
[1732732767153,2.0842,239.6,239.57,6.41021532]
[1732732767412,6.41021532,239.61,239.56,2.46]
[1732732769044,2.0843,239.59,239.56,2.46]
[1732732769450,2.0843,239.58,239.56,2.46]
[1732732769846,2.0843,239.58,239.54,2.0847]
[1732732770055,2.0844,239.57,239.55,2.46]
[1732732770655,2.0843,239.59,239.55,2.46]
[1732732770853,6.41021532,239.63,239.55,2.46]
[1732732771261,2.0843,239.59,239.55,2.46]
[1732732771761,6.41021532,239.63,239.55,2.46]
[1732732772155,2.0843,239.59,239.55,2.46]
[1732732772654,12.52,239.77,239.58,6.41021532]
[1732732772867,6.41021532,239.69,239.61,6.41021532]
[1732732773052,6.41021532,239.69,239.62,2.46]
[1732732773252,2.0837,239.66,239.62,2.46]
[1732732773453,6.41021532,239.69,239.62,2.46]
[1732732773852,2.0838,239.64,239.62,2.46]
[1732732774955,2.0839,239.63,239.62,2.46]
[1732732775151,8.49411532,239.63,239.62,2.46]
[1732732775653,2.0839,239.63,239.62,2.46]
[1732732775856,8.49411532,239.63,239.62,2.46]
[1732732776258,6.41021532,239.63,239.57,2.46]
[1732732776851,2.084,239.62,239.57,2.46]
[1732732777163,6.41021532,239.63,239.57,2.46]
[1732732778465,2.0842,239.6,239.57,2.46]
[1732732778762,6.41021532,239.63,239.57,2.46]
[1732732778957,6.41021532,239.61,239.57,2.46]
[1732732779359,2.0842,239.59,239.57,2.46]
[1732732779564,6.41021532,239.61,239.57,2.46]
[1732732779756,6.41021532,239.59,239.57,2.46]
[1732732780165,2.0843,239.58,239.57,2.46]
[1732732781363,2.0842,239.59,239.57,2.46]
[1732732782866,6.41021532,239.63,239.57,2.46]
[1732732783078,2.0841,239.61,239.57,2.46]
[1732732783484,6.41021532,239.63,239.57,2.46]
[1732732783667,2.0842,239.6,239.57,2.46]
[1732732783862,3.7484,239.69,239.57,2.46]
[1732732784065,6.41021532,239.63,239.57,2.46]
[1732732784260,6.41021532,239.63,239.58,6.41021532]
[1732732784261,2.084,239.63,239.58,6.41021532]
[1732732784677,2.084,239.62,239.58,8.49441532]
[1732732785270,2.084,239.62,239.58,2.0842]
[1732732785570,2.084,239.62,239.57,4.5444]
[1732732785764,6.41021532,239.64,239.57,4.5444]
[1732732785961,6.41021532,239.62,239.57,2.46]
[1732732786169,4.166,239.74,239.57,2.46]
[1732732786170,6.41021532,239.63,239.57,2.46]
[1732732786367,6.41021532,239.61,239.57,2.46]
[1732732786771,6.41021532,239.63,239.57,2.46]
[1732732787166,2.0842,239.59,239.57,2.46]
[1732732787367,6.41021532,239.63,239.57,2.46]
[1732732787865,2.084,239.62,239.57,2.46]
[1732732788119,6.41021532,239.63,239.57,2.46]
[1732732788470,2.0843,239.59,239.57,2.46]
[1732732789573,6.41021532,239.65,239.57,2.46]
[1732732789973,2.0841,239.61,239.57,2.46]
[1732732790370,16.686,239.74,239.57,2.46]
[1732732790671,6.41021532,239.65,239.57,2.46]
[1732732791869,2.0841,239.61,239.57,4.5444]
[1732732792069,2.0841,239.61,239.58,6.41021532]
[1732732792269,6.41021532,239.63,239.57,4.5444]
[1732732792471,6.41021532,239.63,239.57,2.46]
[1732732793269,6.41021532,239.65,239.57,2.46]
[1732732793671,6.41021532,239.66,239.58,6.41021532]
[1732732793871,6.666,239.74,239.58,6.41021532]
[1732732794071,6.41021532,239.68,239.58,6.41021532]
[1732732794750,2.0839,239.64,239.6,2.0842]
[1732732796273,6.41021532,239.64,239.58,2.0842]
[1732732797376,2.084,239.62,239.58,2.0842]
[1732732798372,2.084,239.62,239.59,2.0842]
[1732732800471,2.084,239.62,239.57,4.5443]
[1732732800671,2.084,239.62,239.57,2.46]
[1732732801277,2.084,239.62,239.58,2.0843]
[1732732802768,2.084,239.62,239.57,2.46]
[1732732802769,6.41021532,239.66,239.57,2.46]
[1732732802968,16.6863,239.72,239.57,2.5]
[1732732803172,6.41021532,239.67,239.58,6.41021532]
[1732732803571,2.0838,239.64,239.6,2.0841]
[1732732804678,6.41021532,239.67,239.6,2.0841]
[1732732805578,6.41021532,239.64,239.59,2.0842]
[1732732806273,6.41021532,239.64,239.57,2.5]
[1732732806677,6.41021532,239.62,239.52,2.4841]
[1732732806877,2.0843,239.59,239.55,2.0846]
[1732732808068,2.0843,239.59,239.56,2.0845]